{"text_format":"3","workbook":"xlsx","n_sheets":5,"sheets":["Faktura","Kunder","Fakturor – huvudsida","Fakturainformation","Om fakturaöversikten"],"not_rendered":{"defined_names":8},"read":"whole","date_system":"1900"}

{"sheet":"Faktura","index":0,"n_rows":39,"n_cols":7,"rows_kept":39,"merged":[[1,1,1,2],[1,3,1,4],[1,5,1,6],[2,1,2,2],[2,3,2,4],[2,5,2,6],[3,3,3,4],[4,3,4,4],[5,3,5,4],[37,1,37,4],[38,1,38,4]]}
[null,"Företagsnamn"]
[null,"Gatuadress",null,"T: Telefonnummer",null,"E-post"]
[null,"Postnummer, ort",null,"F: Faxnummer",null,"Webbplats"]
[null,"Faktureringsadress:",{"$f":"IFERROR(VLOOKUP(VLOOKUP(rngFaktura,FakturorHuvudsida[],2,FALSE),Kundlista[],3,TRUE),\"\")","v":"Contoso, Ltd"},{"$f":"\"Telefon: \"&IFERROR(VLOOKUP(VLOOKUP(rngFaktura,FakturorHuvudsida[],2,FALSE),Kundlista[],9,FALSE),\"\")","v":"Telefon: 432-555-0189"},null,"Fakturanummer:","3-456-2"]
[null,"Adress:",{"$f":"IFERROR(IF((VLOOKUP(VLOOKUP(rngFaktura,FakturorHuvudsida[],2,FALSE),Kundlista[],5,FALSE))=\"\",\"\",(VLOOKUP(VLOOKUP(rngFaktura,FakturorHuvudsida[],2,FALSE),Kundlista[],5,FALSE))),\"\")","v":"Drottninggatan 567"},{"$f":"\"Fax:       \"&IFERROR(VLOOKUP(VLOOKUP(rngFaktura,FakturorHuvudsida[],2,FALSE),Kundlista[],11,FALSE),\"\")","v":"Fax:       432-555-0123"},null,"Fakturadatum:",{"$f":"IFERROR(IF(VLOOKUP(rngFaktura,FakturorHuvudsida[],3,FALSE)=\"\",\"\",VLOOKUP(rngFaktura,FakturorHuvudsida[],3,FALSE)),\"\")","v":"2019-08-08"}]
[null,null,{"$f":"IFERROR(VLOOKUP(VLOOKUP(rngFaktura,FakturorHuvudsida[],2,FALSE),Kundlista[],6,FALSE)&\", \"& VLOOKUP(VLOOKUP(G4,FakturorHuvudsida[],2,FALSE),Kundlista[],7,FALSE)&\" \"&VLOOKUP(VLOOKUP(G4,FakturorHuvudsida[],2,FALSE),Kundlista[],8,FALSE),\"\")","v":"Småstad, MO 098765"},{"$f":"\"E-post: \"&IFERROR(VLOOKUP(VLOOKUP(rngFaktura,FakturorHuvudsida[],2,FALSE),Kundlista[],10,FALSE),\"\")","v":"E-post: namn@example.com"}]
[null,{"$f":"\"Faktura för: \"&IFERROR(VLOOKUP(rngFaktura,FakturorHuvudsida[],4),\"\")","v":"Faktura för: Projekt 2"}]
[null,"Artikelnr","Beskrivning","Antal","Enhetspris","Rabatt","Pris"]
[null,{"$f":"IFERROR(INDEX(Fakturainformation[],SMALL(IF(Fakturainformation[Fakturanummer]=rngFaktura,ROW(Fakturainformation[])-ROW(Fakturainformation[#Headers])), ROW(1:1)), MATCH($B$8, Fakturainformation[#Headers], 0)),\"\")","v":"Z4567"},{"$f":"IFERROR(INDEX(Fakturainformation[],SMALL(IF(Fakturainformation[Fakturanummer]=rngFaktura,ROW(Fakturainformation[])-ROW(Fakturainformation[#Headers])), ROW(1:1)), MATCH($C$8, Fakturainformation[#Headers], 0)),\"\")","v":"Faktura 3-456-2 Data 1"},{"$f":"IFERROR(INDEX(Fakturainformation[],SMALL(IF(Fakturainformation[Fakturanummer]=rngFaktura,ROW(Fakturainformation[])-ROW(Fakturainformation[#Headers])), ROW(1:1)), MATCH($D$8, Fakturainformation[#Headers], 0)),\"\")","v":39},{"$f":"IFERROR(INDEX(Fakturainformation[],SMALL(IF(Fakturainformation[Fakturanummer]=rngFaktura,ROW(Fakturainformation[])-ROW(Fakturainformation[#Headers])), ROW(1:1)), MATCH($E$8, Fakturainformation[#Headers], 0)),\"\")","v":{"v":5,"d":"5.00 kr"}},{"$f":"IFERROR(INDEX(Fakturainformation[],SMALL(IF(Fakturainformation[Fakturanummer]=rngFaktura,ROW(Fakturainformation[])-ROW(Fakturainformation[#Headers])), ROW(1:1)), MATCH($F$8, Fakturainformation[#Headers], 0)),\"\")","v":0},{"$f":"IFERROR((D9*E9)-F9,\"\")","v":{"v":195,"d":"195.00 kr"}}]
[null,{"$f":"IFERROR(INDEX(Fakturainformation[],SMALL(IF(Fakturainformation[Fakturanummer]=rngFaktura,ROW(Fakturainformation[])-ROW(Fakturainformation[#Headers])), ROW(2:2)), MATCH($B$8, Fakturainformation[#Headers], 0)),\"\")","v":"Z4568"},{"$f":"IFERROR(INDEX(Fakturainformation[],SMALL(IF(Fakturainformation[Fakturanummer]=rngFaktura,ROW(Fakturainformation[])-ROW(Fakturainformation[#Headers])), ROW(2:2)), MATCH($C$8, Fakturainformation[#Headers], 0)),\"\")","v":"Faktura 3-456-2 Data 2"},{"$f":"IFERROR(INDEX(Fakturainformation[],SMALL(IF(Fakturainformation[Fakturanummer]=rngFaktura,ROW(Fakturainformation[])-ROW(Fakturainformation[#Headers])), ROW(2:2)), MATCH($D$8, Fakturainformation[#Headers], 0)),\"\")","v":40},{"$f":"IFERROR(INDEX(Fakturainformation[],SMALL(IF(Fakturainformation[Fakturanummer]=rngFaktura,ROW(Fakturainformation[])-ROW(Fakturainformation[#Headers])), ROW(2:2)), MATCH($E$8, Fakturainformation[#Headers], 0)),\"\")","v":{"v":4,"d":"4.00 kr"}},{"$f":"IFERROR(INDEX(Fakturainformation[],SMALL(IF(Fakturainformation[Fakturanummer]=rngFaktura,ROW(Fakturainformation[])-ROW(Fakturainformation[#Headers])), ROW(2:2)), MATCH($F$8, Fakturainformation[#Headers], 0)),\"\")","v":{"v":5,"d":"5.00 kr"}},{"v":155,"d":"155.00 kr"}]
[null,{"$f":"IFERROR(INDEX(Fakturainformation[],SMALL(IF(Fakturainformation[Fakturanummer]=rngFaktura,ROW(Fakturainformation[])-ROW(Fakturainformation[#Headers])), ROW(3:3)), MATCH($B$8, Fakturainformation[#Headers], 0)),\"\")","v":"Z4569"},{"$f":"IFERROR(INDEX(Fakturainformation[],SMALL(IF(Fakturainformation[Fakturanummer]=rngFaktura,ROW(Fakturainformation[])-ROW(Fakturainformation[#Headers])), ROW(3:3)), MATCH($C$8, Fakturainformation[#Headers], 0)),\"\")","v":"Faktura 3-456-2 Data 3"},{"$f":"IFERROR(INDEX(Fakturainformation[],SMALL(IF(Fakturainformation[Fakturanummer]=rngFaktura,ROW(Fakturainformation[])-ROW(Fakturainformation[#Headers])), ROW(3:3)), MATCH($D$8, Fakturainformation[#Headers], 0)),\"\")","v":30},{"$f":"IFERROR(INDEX(Fakturainformation[],SMALL(IF(Fakturainformation[Fakturanummer]=rngFaktura,ROW(Fakturainformation[])-ROW(Fakturainformation[#Headers])), ROW(3:3)), MATCH($E$8, Fakturainformation[#Headers], 0)),\"\")","v":{"v":6,"d":"6.00 kr"}},{"$f":"IFERROR(INDEX(Fakturainformation[],SMALL(IF(Fakturainformation[Fakturanummer]=rngFaktura,ROW(Fakturainformation[])-ROW(Fakturainformation[#Headers])), ROW(3:3)), MATCH($F$8, Fakturainformation[#Headers], 0)),\"\")","v":{"v":7,"d":"7.00 kr"}},{"v":173,"d":"173.00 kr"}]
[null,{"$f":"IFERROR(INDEX(Fakturainformation[],SMALL(IF(Fakturainformation[Fakturanummer]=rngFaktura,ROW(Fakturainformation[])-ROW(Fakturainformation[#Headers])), ROW(4:4)), MATCH($B$8, Fakturainformation[#Headers], 0)),\"\")","v":"Z4570"},{"$f":"IFERROR(INDEX(Fakturainformation[],SMALL(IF(Fakturainformation[Fakturanummer]=rngFaktura,ROW(Fakturainformation[])-ROW(Fakturainformation[#Headers])), ROW(4:4)), MATCH($C$8, Fakturainformation[#Headers], 0)),\"\")","v":"Faktura 3-456-2 Data 4"},{"$f":"IFERROR(INDEX(Fakturainformation[],SMALL(IF(Fakturainformation[Fakturanummer]=rngFaktura,ROW(Fakturainformation[])-ROW(Fakturainformation[#Headers])), ROW(4:4)), MATCH($D$8, Fakturainformation[#Headers], 0)),\"\")","v":40},{"$f":"IFERROR(INDEX(Fakturainformation[],SMALL(IF(Fakturainformation[Fakturanummer]=rngFaktura,ROW(Fakturainformation[])-ROW(Fakturainformation[#Headers])), ROW(4:4)), MATCH($E$8, Fakturainformation[#Headers], 0)),\"\")","v":{"v":7,"d":"7.00 kr"}},{"$f":"IFERROR(INDEX(Fakturainformation[],SMALL(IF(Fakturainformation[Fakturanummer]=rngFaktura,ROW(Fakturainformation[])-ROW(Fakturainformation[#Headers])), ROW(4:4)), MATCH($F$8, Fakturainformation[#Headers], 0)),\"\")","v":0},{"v":280,"d":"280.00 kr"}]
[null,{"$f":"IFERROR(INDEX(Fakturainformation[],SMALL(IF(Fakturainformation[Fakturanummer]=rngFaktura,ROW(Fakturainformation[])-ROW(Fakturainformation[#Headers])), ROW(5:5)), MATCH($B$8, Fakturainformation[#Headers], 0)),\"\")","v":"Z4571"},{"$f":"IFERROR(INDEX(Fakturainformation[],SMALL(IF(Fakturainformation[Fakturanummer]=rngFaktura,ROW(Fakturainformation[])-ROW(Fakturainformation[#Headers])), ROW(5:5)), MATCH($C$8, Fakturainformation[#Headers], 0)),\"\")","v":"Faktura 3-456-2 Data 5"},{"$f":"IFERROR(INDEX(Fakturainformation[],SMALL(IF(Fakturainformation[Fakturanummer]=rngFaktura,ROW(Fakturainformation[])-ROW(Fakturainformation[#Headers])), ROW(5:5)), MATCH($D$8, Fakturainformation[#Headers], 0)),\"\")","v":10},{"$f":"IFERROR(INDEX(Fakturainformation[],SMALL(IF(Fakturainformation[Fakturanummer]=rngFaktura,ROW(Fakturainformation[])-ROW(Fakturainformation[#Headers])), ROW(5:5)), MATCH($E$8, Fakturainformation[#Headers], 0)),\"\")","v":{"v":4,"d":"4.00 kr"}},{"$f":"IFERROR(INDEX(Fakturainformation[],SMALL(IF(Fakturainformation[Fakturanummer]=rngFaktura,ROW(Fakturainformation[])-ROW(Fakturainformation[#Headers])), ROW(5:5)), MATCH($F$8, Fakturainformation[#Headers], 0)),\"\")","v":0},{"v":40,"d":"40.00 kr"}]
[null,{"$f":"IFERROR(INDEX(Fakturainformation[],SMALL(IF(Fakturainformation[Fakturanummer]=rngFaktura,ROW(Fakturainformation[])-ROW(Fakturainformation[#Headers])), ROW(6:6)), MATCH($B$8, Fakturainformation[#Headers], 0)),\"\")","v":"Z4572"},{"$f":"IFERROR(INDEX(Fakturainformation[],SMALL(IF(Fakturainformation[Fakturanummer]=rngFaktura,ROW(Fakturainformation[])-ROW(Fakturainformation[#Headers])), ROW(6:6)), MATCH($C$8, Fakturainformation[#Headers], 0)),\"\")","v":"Faktura 3-456-2 Data 6"},{"$f":"IFERROR(INDEX(Fakturainformation[],SMALL(IF(Fakturainformation[Fakturanummer]=rngFaktura,ROW(Fakturainformation[])-ROW(Fakturainformation[#Headers])), ROW(6:6)), MATCH($D$8, Fakturainformation[#Headers], 0)),\"\")","v":5},{"$f":"IFERROR(INDEX(Fakturainformation[],SMALL(IF(Fakturainformation[Fakturanummer]=rngFaktura,ROW(Fakturainformation[])-ROW(Fakturainformation[#Headers])), ROW(6:6)), MATCH($E$8, Fakturainformation[#Headers], 0)),\"\")","v":{"v":8,"d":"8.00 kr"}},{"$f":"IFERROR(INDEX(Fakturainformation[],SMALL(IF(Fakturainformation[Fakturanummer]=rngFaktura,ROW(Fakturainformation[])-ROW(Fakturainformation[#Headers])), ROW(6:6)), MATCH($F$8, Fakturainformation[#Headers], 0)),\"\")","v":0},{"v":40,"d":"40.00 kr"}]
[null,{"$f":"IFERROR(INDEX(Fakturainformation[],SMALL(IF(Fakturainformation[Fakturanummer]=rngFaktura,ROW(Fakturainformation[])-ROW(Fakturainformation[#Headers])), ROW(7:7)), MATCH($B$8, Fakturainformation[#Headers], 0)),\"\")","v":"Z4573"},{"$f":"IFERROR(INDEX(Fakturainformation[],SMALL(IF(Fakturainformation[Fakturanummer]=rngFaktura,ROW(Fakturainformation[])-ROW(Fakturainformation[#Headers])), ROW(7:7)), MATCH($C$8, Fakturainformation[#Headers], 0)),\"\")","v":"Faktura 3-456-2 Data 7"},{"$f":"IFERROR(INDEX(Fakturainformation[],SMALL(IF(Fakturainformation[Fakturanummer]=rngFaktura,ROW(Fakturainformation[])-ROW(Fakturainformation[#Headers])), ROW(7:7)), MATCH($D$8, Fakturainformation[#Headers], 0)),\"\")","v":70},{"$f":"IFERROR(INDEX(Fakturainformation[],SMALL(IF(Fakturainformation[Fakturanummer]=rngFaktura,ROW(Fakturainformation[])-ROW(Fakturainformation[#Headers])), ROW(7:7)), MATCH($E$8, Fakturainformation[#Headers], 0)),\"\")","v":{"v":6,"d":"6.00 kr"}},{"$f":"IFERROR(INDEX(Fakturainformation[],SMALL(IF(Fakturainformation[Fakturanummer]=rngFaktura,ROW(Fakturainformation[])-ROW(Fakturainformation[#Headers])), ROW(7:7)), MATCH($F$8, Fakturainformation[#Headers], 0)),\"\")","v":0},{"v":420,"d":"420.00 kr"}]
[null,{"$f":"IFERROR(INDEX(Fakturainformation[],SMALL(IF(Fakturainformation[Fakturanummer]=rngFaktura,ROW(Fakturainformation[])-ROW(Fakturainformation[#Headers])), ROW(8:8)), MATCH($B$8, Fakturainformation[#Headers], 0)),\"\")","v":"Z4574"},{"$f":"IFERROR(INDEX(Fakturainformation[],SMALL(IF(Fakturainformation[Fakturanummer]=rngFaktura,ROW(Fakturainformation[])-ROW(Fakturainformation[#Headers])), ROW(8:8)), MATCH($C$8, Fakturainformation[#Headers], 0)),\"\")","v":"Faktura 3-456-2 Data 8"},{"$f":"IFERROR(INDEX(Fakturainformation[],SMALL(IF(Fakturainformation[Fakturanummer]=rngFaktura,ROW(Fakturainformation[])-ROW(Fakturainformation[#Headers])), ROW(8:8)), MATCH($D$8, Fakturainformation[#Headers], 0)),\"\")","v":25},{"$f":"IFERROR(INDEX(Fakturainformation[],SMALL(IF(Fakturainformation[Fakturanummer]=rngFaktura,ROW(Fakturainformation[])-ROW(Fakturainformation[#Headers])), ROW(8:8)), MATCH($E$8, Fakturainformation[#Headers], 0)),\"\")","v":{"v":4,"d":"4.00 kr"}},{"$f":"IFERROR(INDEX(Fakturainformation[],SMALL(IF(Fakturainformation[Fakturanummer]=rngFaktura,ROW(Fakturainformation[])-ROW(Fakturainformation[#Headers])), ROW(8:8)), MATCH($F$8, Fakturainformation[#Headers], 0)),\"\")","v":0},{"v":100,"d":"100.00 kr"}]
[null,{"$f":"IFERROR(INDEX(Fakturainformation[],SMALL(IF(Fakturainformation[Fakturanummer]=rngFaktura,ROW(Fakturainformation[])-ROW(Fakturainformation[#Headers])), ROW(9:9)), MATCH($B$8, Fakturainformation[#Headers], 0)),\"\")","v":"Z4575"},{"$f":"IFERROR(INDEX(Fakturainformation[],SMALL(IF(Fakturainformation[Fakturanummer]=rngFaktura,ROW(Fakturainformation[])-ROW(Fakturainformation[#Headers])), ROW(9:9)), MATCH($C$8, Fakturainformation[#Headers], 0)),\"\")","v":"Faktura 3-456-2 Data 9"},{"$f":"IFERROR(INDEX(Fakturainformation[],SMALL(IF(Fakturainformation[Fakturanummer]=rngFaktura,ROW(Fakturainformation[])-ROW(Fakturainformation[#Headers])), ROW(9:9)), MATCH($D$8, Fakturainformation[#Headers], 0)),\"\")","v":5},{"$f":"IFERROR(INDEX(Fakturainformation[],SMALL(IF(Fakturainformation[Fakturanummer]=rngFaktura,ROW(Fakturainformation[])-ROW(Fakturainformation[#Headers])), ROW(9:9)), MATCH($E$8, Fakturainformation[#Headers], 0)),\"\")","v":{"v":7,"d":"7.00 kr"}},{"$f":"IFERROR(INDEX(Fakturainformation[],SMALL(IF(Fakturainformation[Fakturanummer]=rngFaktura,ROW(Fakturainformation[])-ROW(Fakturainformation[#Headers])), ROW(9:9)), MATCH($F$8, Fakturainformation[#Headers], 0)),\"\")","v":{"v":3,"d":"3.00 kr"}},{"v":32,"d":"32.00 kr"}]
[null,{"$f":"IFERROR(INDEX(Fakturainformation[],SMALL(IF(Fakturainformation[Fakturanummer]=rngFaktura,ROW(Fakturainformation[])-ROW(Fakturainformation[#Headers])), ROW(10:10)), MATCH($B$8, Fakturainformation[#Headers], 0)),\"\")","v":"Z4576"},{"$f":"IFERROR(INDEX(Fakturainformation[],SMALL(IF(Fakturainformation[Fakturanummer]=rngFaktura,ROW(Fakturainformation[])-ROW(Fakturainformation[#Headers])), ROW(10:10)), MATCH($C$8, Fakturainformation[#Headers], 0)),\"\")","v":"Faktura 3-456-2 Data 10"},{"$f":"IFERROR(INDEX(Fakturainformation[],SMALL(IF(Fakturainformation[Fakturanummer]=rngFaktura,ROW(Fakturainformation[])-ROW(Fakturainformation[#Headers])), ROW(10:10)), MATCH($D$8, Fakturainformation[#Headers], 0)),\"\")","v":80},{"$f":"IFERROR(INDEX(Fakturainformation[],SMALL(IF(Fakturainformation[Fakturanummer]=rngFaktura,ROW(Fakturainformation[])-ROW(Fakturainformation[#Headers])), ROW(10:10)), MATCH($E$8, Fakturainformation[#Headers], 0)),\"\")","v":{"v":1,"d":"1.00 kr"}},{"$f":"IFERROR(INDEX(Fakturainformation[],SMALL(IF(Fakturainformation[Fakturanummer]=rngFaktura,ROW(Fakturainformation[])-ROW(Fakturainformation[#Headers])), ROW(10:10)), MATCH($F$8, Fakturainformation[#Headers], 0)),\"\")","v":0},{"v":80,"d":"80.00 kr"}]
[null,{"$f":"IFERROR(INDEX(Fakturainformation[],SMALL(IF(Fakturainformation[Fakturanummer]=rngFaktura,ROW(Fakturainformation[])-ROW(Fakturainformation[#Headers])), ROW(11:11)), MATCH($B$8, Fakturainformation[#Headers], 0)),\"\")","v":"Z4577"},{"$f":"IFERROR(INDEX(Fakturainformation[],SMALL(IF(Fakturainformation[Fakturanummer]=rngFaktura,ROW(Fakturainformation[])-ROW(Fakturainformation[#Headers])), ROW(11:11)), MATCH($C$8, Fakturainformation[#Headers], 0)),\"\")","v":"Faktura 3-456-2 Data 11"},{"$f":"IFERROR(INDEX(Fakturainformation[],SMALL(IF(Fakturainformation[Fakturanummer]=rngFaktura,ROW(Fakturainformation[])-ROW(Fakturainformation[#Headers])), ROW(11:11)), MATCH($D$8, Fakturainformation[#Headers], 0)),\"\")","v":65},{"$f":"IFERROR(INDEX(Fakturainformation[],SMALL(IF(Fakturainformation[Fakturanummer]=rngFaktura,ROW(Fakturainformation[])-ROW(Fakturainformation[#Headers])), ROW(11:11)), MATCH($E$8, Fakturainformation[#Headers], 0)),\"\")","v":{"v":7,"d":"7.00 kr"}},{"$f":"IFERROR(INDEX(Fakturainformation[],SMALL(IF(Fakturainformation[Fakturanummer]=rngFaktura,ROW(Fakturainformation[])-ROW(Fakturainformation[#Headers])), ROW(11:11)), MATCH($F$8, Fakturainformation[#Headers], 0)),\"\")","v":0},{"v":455,"d":"455.00 kr"}]
[null,{"$f":"IFERROR(INDEX(Fakturainformation[],SMALL(IF(Fakturainformation[Fakturanummer]=rngFaktura,ROW(Fakturainformation[])-ROW(Fakturainformation[#Headers])), ROW(12:12)), MATCH($B$8, Fakturainformation[#Headers], 0)),\"\")","v":"Z4578"},{"$f":"IFERROR(INDEX(Fakturainformation[],SMALL(IF(Fakturainformation[Fakturanummer]=rngFaktura,ROW(Fakturainformation[])-ROW(Fakturainformation[#Headers])), ROW(12:12)), MATCH($C$8, Fakturainformation[#Headers], 0)),\"\")","v":"Faktura 3-456-2 Data 12"},{"$f":"IFERROR(INDEX(Fakturainformation[],SMALL(IF(Fakturainformation[Fakturanummer]=rngFaktura,ROW(Fakturainformation[])-ROW(Fakturainformation[#Headers])), ROW(12:12)), MATCH($D$8, Fakturainformation[#Headers], 0)),\"\")","v":44},{"$f":"IFERROR(INDEX(Fakturainformation[],SMALL(IF(Fakturainformation[Fakturanummer]=rngFaktura,ROW(Fakturainformation[])-ROW(Fakturainformation[#Headers])), ROW(12:12)), MATCH($E$8, Fakturainformation[#Headers], 0)),\"\")","v":{"v":1,"d":"1.00 kr"}},{"$f":"IFERROR(INDEX(Fakturainformation[],SMALL(IF(Fakturainformation[Fakturanummer]=rngFaktura,ROW(Fakturainformation[])-ROW(Fakturainformation[#Headers])), ROW(12:12)), MATCH($F$8, Fakturainformation[#Headers], 0)),\"\")","v":0},{"v":44,"d":"44.00 kr"}]
[null,{"$f":"IFERROR(INDEX(Fakturainformation[],SMALL(IF(Fakturainformation[Fakturanummer]=rngFaktura,ROW(Fakturainformation[])-ROW(Fakturainformation[#Headers])), ROW(13:13)), MATCH($B$8, Fakturainformation[#Headers], 0)),\"\")","v":""},{"$f":"IFERROR(INDEX(Fakturainformation[],SMALL(IF(Fakturainformation[Fakturanummer]=rngFaktura,ROW(Fakturainformation[])-ROW(Fakturainformation[#Headers])), ROW(13:13)), MATCH($C$8, Fakturainformation[#Headers], 0)),\"\")","v":""},{"$f":"IFERROR(INDEX(Fakturainformation[],SMALL(IF(Fakturainformation[Fakturanummer]=rngFaktura,ROW(Fakturainformation[])-ROW(Fakturainformation[#Headers])), ROW(13:13)), MATCH($D$8, Fakturainformation[#Headers], 0)),\"\")","v":""},{"$f":"IFERROR(INDEX(Fakturainformation[],SMALL(IF(Fakturainformation[Fakturanummer]=rngFaktura,ROW(Fakturainformation[])-ROW(Fakturainformation[#Headers])), ROW(13:13)), MATCH($E$8, Fakturainformation[#Headers], 0)),\"\")","v":""},{"$f":"IFERROR(INDEX(Fakturainformation[],SMALL(IF(Fakturainformation[Fakturanummer]=rngFaktura,ROW(Fakturainformation[])-ROW(Fakturainformation[#Headers])), ROW(13:13)), MATCH($F$8, Fakturainformation[#Headers], 0)),\"\")","v":""},""]
[null,{"$f":"IFERROR(INDEX(Fakturainformation[],SMALL(IF(Fakturainformation[Fakturanummer]=rngFaktura,ROW(Fakturainformation[])-ROW(Fakturainformation[#Headers])), ROW(14:14)), MATCH($B$8, Fakturainformation[#Headers], 0)),\"\")","v":""},{"$f":"IFERROR(INDEX(Fakturainformation[],SMALL(IF(Fakturainformation[Fakturanummer]=rngFaktura,ROW(Fakturainformation[])-ROW(Fakturainformation[#Headers])), ROW(14:14)), MATCH($C$8, Fakturainformation[#Headers], 0)),\"\")","v":""},{"$f":"IFERROR(INDEX(Fakturainformation[],SMALL(IF(Fakturainformation[Fakturanummer]=rngFaktura,ROW(Fakturainformation[])-ROW(Fakturainformation[#Headers])), ROW(14:14)), MATCH($D$8, Fakturainformation[#Headers], 0)),\"\")","v":""},{"$f":"IFERROR(INDEX(Fakturainformation[],SMALL(IF(Fakturainformation[Fakturanummer]=rngFaktura,ROW(Fakturainformation[])-ROW(Fakturainformation[#Headers])), ROW(14:14)), MATCH($E$8, Fakturainformation[#Headers], 0)),\"\")","v":""},{"$f":"IFERROR(INDEX(Fakturainformation[],SMALL(IF(Fakturainformation[Fakturanummer]=rngFaktura,ROW(Fakturainformation[])-ROW(Fakturainformation[#Headers])), ROW(14:14)), MATCH($F$8, Fakturainformation[#Headers], 0)),\"\")","v":""},""]
[null,{"$f":"IFERROR(INDEX(Fakturainformation[],SMALL(IF(Fakturainformation[Fakturanummer]=rngFaktura,ROW(Fakturainformation[])-ROW(Fakturainformation[#Headers])), ROW(15:15)), MATCH($B$8, Fakturainformation[#Headers], 0)),\"\")","v":""},{"$f":"IFERROR(INDEX(Fakturainformation[],SMALL(IF(Fakturainformation[Fakturanummer]=rngFaktura,ROW(Fakturainformation[])-ROW(Fakturainformation[#Headers])), ROW(15:15)), MATCH($C$8, Fakturainformation[#Headers], 0)),\"\")","v":""},{"$f":"IFERROR(INDEX(Fakturainformation[],SMALL(IF(Fakturainformation[Fakturanummer]=rngFaktura,ROW(Fakturainformation[])-ROW(Fakturainformation[#Headers])), ROW(15:15)), MATCH($D$8, Fakturainformation[#Headers], 0)),\"\")","v":""},{"$f":"IFERROR(INDEX(Fakturainformation[],SMALL(IF(Fakturainformation[Fakturanummer]=rngFaktura,ROW(Fakturainformation[])-ROW(Fakturainformation[#Headers])), ROW(15:15)), MATCH($E$8, Fakturainformation[#Headers], 0)),\"\")","v":""},{"$f":"IFERROR(INDEX(Fakturainformation[],SMALL(IF(Fakturainformation[Fakturanummer]=rngFaktura,ROW(Fakturainformation[])-ROW(Fakturainformation[#Headers])), ROW(15:15)), MATCH($F$8, Fakturainformation[#Headers], 0)),\"\")","v":""},""]
[null,{"$f":"IFERROR(INDEX(Fakturainformation[],SMALL(IF(Fakturainformation[Fakturanummer]=rngFaktura,ROW(Fakturainformation[])-ROW(Fakturainformation[#Headers])), ROW(16:16)), MATCH($B$8, Fakturainformation[#Headers], 0)),\"\")","v":""},{"$f":"IFERROR(INDEX(Fakturainformation[],SMALL(IF(Fakturainformation[Fakturanummer]=rngFaktura,ROW(Fakturainformation[])-ROW(Fakturainformation[#Headers])), ROW(16:16)), MATCH($C$8, Fakturainformation[#Headers], 0)),\"\")","v":""},{"$f":"IFERROR(INDEX(Fakturainformation[],SMALL(IF(Fakturainformation[Fakturanummer]=rngFaktura,ROW(Fakturainformation[])-ROW(Fakturainformation[#Headers])), ROW(16:16)), MATCH($D$8, Fakturainformation[#Headers], 0)),\"\")","v":""},{"$f":"IFERROR(INDEX(Fakturainformation[],SMALL(IF(Fakturainformation[Fakturanummer]=rngFaktura,ROW(Fakturainformation[])-ROW(Fakturainformation[#Headers])), ROW(16:16)), MATCH($E$8, Fakturainformation[#Headers], 0)),\"\")","v":""},{"$f":"IFERROR(INDEX(Fakturainformation[],SMALL(IF(Fakturainformation[Fakturanummer]=rngFaktura,ROW(Fakturainformation[])-ROW(Fakturainformation[#Headers])), ROW(16:16)), MATCH($F$8, Fakturainformation[#Headers], 0)),\"\")","v":""},""]
[null,{"$f":"IFERROR(INDEX(Fakturainformation[],SMALL(IF(Fakturainformation[Fakturanummer]=rngFaktura,ROW(Fakturainformation[])-ROW(Fakturainformation[#Headers])), ROW(17:17)), MATCH($B$8, Fakturainformation[#Headers], 0)),\"\")","v":""},{"$f":"IFERROR(INDEX(Fakturainformation[],SMALL(IF(Fakturainformation[Fakturanummer]=rngFaktura,ROW(Fakturainformation[])-ROW(Fakturainformation[#Headers])), ROW(17:17)), MATCH($C$8, Fakturainformation[#Headers], 0)),\"\")","v":""},{"$f":"IFERROR(INDEX(Fakturainformation[],SMALL(IF(Fakturainformation[Fakturanummer]=rngFaktura,ROW(Fakturainformation[])-ROW(Fakturainformation[#Headers])), ROW(17:17)), MATCH($D$8, Fakturainformation[#Headers], 0)),\"\")","v":""},{"$f":"IFERROR(INDEX(Fakturainformation[],SMALL(IF(Fakturainformation[Fakturanummer]=rngFaktura,ROW(Fakturainformation[])-ROW(Fakturainformation[#Headers])), ROW(17:17)), MATCH($E$8, Fakturainformation[#Headers], 0)),\"\")","v":""},{"$f":"IFERROR(INDEX(Fakturainformation[],SMALL(IF(Fakturainformation[Fakturanummer]=rngFaktura,ROW(Fakturainformation[])-ROW(Fakturainformation[#Headers])), ROW(17:17)), MATCH($F$8, Fakturainformation[#Headers], 0)),\"\")","v":""},""]
[null,{"$f":"IFERROR(INDEX(Fakturainformation[],SMALL(IF(Fakturainformation[Fakturanummer]=rngFaktura,ROW(Fakturainformation[])-ROW(Fakturainformation[#Headers])), ROW(18:18)), MATCH($B$8, Fakturainformation[#Headers], 0)),\"\")","v":""},{"$f":"IFERROR(INDEX(Fakturainformation[],SMALL(IF(Fakturainformation[Fakturanummer]=rngFaktura,ROW(Fakturainformation[])-ROW(Fakturainformation[#Headers])), ROW(18:18)), MATCH($C$8, Fakturainformation[#Headers], 0)),\"\")","v":""},{"$f":"IFERROR(INDEX(Fakturainformation[],SMALL(IF(Fakturainformation[Fakturanummer]=rngFaktura,ROW(Fakturainformation[])-ROW(Fakturainformation[#Headers])), ROW(18:18)), MATCH($D$8, Fakturainformation[#Headers], 0)),\"\")","v":""},{"$f":"IFERROR(INDEX(Fakturainformation[],SMALL(IF(Fakturainformation[Fakturanummer]=rngFaktura,ROW(Fakturainformation[])-ROW(Fakturainformation[#Headers])), ROW(18:18)), MATCH($E$8, Fakturainformation[#Headers], 0)),\"\")","v":""},{"$f":"IFERROR(INDEX(Fakturainformation[],SMALL(IF(Fakturainformation[Fakturanummer]=rngFaktura,ROW(Fakturainformation[])-ROW(Fakturainformation[#Headers])), ROW(18:18)), MATCH($F$8, Fakturainformation[#Headers], 0)),\"\")","v":""},""]
[null,{"$f":"IFERROR(INDEX(Fakturainformation[],SMALL(IF(Fakturainformation[Fakturanummer]=rngFaktura,ROW(Fakturainformation[])-ROW(Fakturainformation[#Headers])), ROW(19:19)), MATCH($B$8, Fakturainformation[#Headers], 0)),\"\")","v":""},{"$f":"IFERROR(INDEX(Fakturainformation[],SMALL(IF(Fakturainformation[Fakturanummer]=rngFaktura,ROW(Fakturainformation[])-ROW(Fakturainformation[#Headers])), ROW(19:19)), MATCH($C$8, Fakturainformation[#Headers], 0)),\"\")","v":""},{"$f":"IFERROR(INDEX(Fakturainformation[],SMALL(IF(Fakturainformation[Fakturanummer]=rngFaktura,ROW(Fakturainformation[])-ROW(Fakturainformation[#Headers])), ROW(19:19)), MATCH($D$8, Fakturainformation[#Headers], 0)),\"\")","v":""},{"$f":"IFERROR(INDEX(Fakturainformation[],SMALL(IF(Fakturainformation[Fakturanummer]=rngFaktura,ROW(Fakturainformation[])-ROW(Fakturainformation[#Headers])), ROW(19:19)), MATCH($E$8, Fakturainformation[#Headers], 0)),\"\")","v":""},{"$f":"IFERROR(INDEX(Fakturainformation[],SMALL(IF(Fakturainformation[Fakturanummer]=rngFaktura,ROW(Fakturainformation[])-ROW(Fakturainformation[#Headers])), ROW(19:19)), MATCH($F$8, Fakturainformation[#Headers], 0)),\"\")","v":""},""]
[null,{"$f":"IFERROR(INDEX(Fakturainformation[],SMALL(IF(Fakturainformation[Fakturanummer]=rngFaktura,ROW(Fakturainformation[])-ROW(Fakturainformation[#Headers])), ROW(20:20)), MATCH($B$8, Fakturainformation[#Headers], 0)),\"\")","v":""},{"$f":"IFERROR(INDEX(Fakturainformation[],SMALL(IF(Fakturainformation[Fakturanummer]=rngFaktura,ROW(Fakturainformation[])-ROW(Fakturainformation[#Headers])), ROW(20:20)), MATCH($C$8, Fakturainformation[#Headers], 0)),\"\")","v":""},{"$f":"IFERROR(INDEX(Fakturainformation[],SMALL(IF(Fakturainformation[Fakturanummer]=rngFaktura,ROW(Fakturainformation[])-ROW(Fakturainformation[#Headers])), ROW(20:20)), MATCH($D$8, Fakturainformation[#Headers], 0)),\"\")","v":""},{"$f":"IFERROR(INDEX(Fakturainformation[],SMALL(IF(Fakturainformation[Fakturanummer]=rngFaktura,ROW(Fakturainformation[])-ROW(Fakturainformation[#Headers])), ROW(20:20)), MATCH($E$8, Fakturainformation[#Headers], 0)),\"\")","v":""},{"$f":"IFERROR(INDEX(Fakturainformation[],SMALL(IF(Fakturainformation[Fakturanummer]=rngFaktura,ROW(Fakturainformation[])-ROW(Fakturainformation[#Headers])), ROW(20:20)), MATCH($F$8, Fakturainformation[#Headers], 0)),\"\")","v":""},""]
[null,{"$f":"IFERROR(INDEX(Fakturainformation[],SMALL(IF(Fakturainformation[Fakturanummer]=rngFaktura,ROW(Fakturainformation[])-ROW(Fakturainformation[#Headers])), ROW(21:21)), MATCH($B$8, Fakturainformation[#Headers], 0)),\"\")","v":""},{"$f":"IFERROR(INDEX(Fakturainformation[],SMALL(IF(Fakturainformation[Fakturanummer]=rngFaktura,ROW(Fakturainformation[])-ROW(Fakturainformation[#Headers])), ROW(21:21)), MATCH($C$8, Fakturainformation[#Headers], 0)),\"\")","v":""},{"$f":"IFERROR(INDEX(Fakturainformation[],SMALL(IF(Fakturainformation[Fakturanummer]=rngFaktura,ROW(Fakturainformation[])-ROW(Fakturainformation[#Headers])), ROW(21:21)), MATCH($D$8, Fakturainformation[#Headers], 0)),\"\")","v":""},{"$f":"IFERROR(INDEX(Fakturainformation[],SMALL(IF(Fakturainformation[Fakturanummer]=rngFaktura,ROW(Fakturainformation[])-ROW(Fakturainformation[#Headers])), ROW(21:21)), MATCH($E$8, Fakturainformation[#Headers], 0)),\"\")","v":""},{"$f":"IFERROR(INDEX(Fakturainformation[],SMALL(IF(Fakturainformation[Fakturanummer]=rngFaktura,ROW(Fakturainformation[])-ROW(Fakturainformation[#Headers])), ROW(21:21)), MATCH($F$8, Fakturainformation[#Headers], 0)),\"\")","v":""},""]
[null,{"$f":"IFERROR(INDEX(Fakturainformation[],SMALL(IF(Fakturainformation[Fakturanummer]=rngFaktura,ROW(Fakturainformation[])-ROW(Fakturainformation[#Headers])), ROW(22:22)), MATCH($B$8, Fakturainformation[#Headers], 0)),\"\")","v":""},{"$f":"IFERROR(INDEX(Fakturainformation[],SMALL(IF(Fakturainformation[Fakturanummer]=rngFaktura,ROW(Fakturainformation[])-ROW(Fakturainformation[#Headers])), ROW(22:22)), MATCH($C$8, Fakturainformation[#Headers], 0)),\"\")","v":""},{"$f":"IFERROR(INDEX(Fakturainformation[],SMALL(IF(Fakturainformation[Fakturanummer]=rngFaktura,ROW(Fakturainformation[])-ROW(Fakturainformation[#Headers])), ROW(22:22)), MATCH($D$8, Fakturainformation[#Headers], 0)),\"\")","v":""},{"$f":"IFERROR(INDEX(Fakturainformation[],SMALL(IF(Fakturainformation[Fakturanummer]=rngFaktura,ROW(Fakturainformation[])-ROW(Fakturainformation[#Headers])), ROW(22:22)), MATCH($E$8, Fakturainformation[#Headers], 0)),\"\")","v":""},{"$f":"IFERROR(INDEX(Fakturainformation[],SMALL(IF(Fakturainformation[Fakturanummer]=rngFaktura,ROW(Fakturainformation[])-ROW(Fakturainformation[#Headers])), ROW(22:22)), MATCH($F$8, Fakturainformation[#Headers], 0)),\"\")","v":""},""]
[null,{"$f":"IFERROR(INDEX(Fakturainformation[],SMALL(IF(Fakturainformation[Fakturanummer]=rngFaktura,ROW(Fakturainformation[])-ROW(Fakturainformation[#Headers])), ROW(23:23)), MATCH($B$8, Fakturainformation[#Headers], 0)),\"\")","v":""},{"$f":"IFERROR(INDEX(Fakturainformation[],SMALL(IF(Fakturainformation[Fakturanummer]=rngFaktura,ROW(Fakturainformation[])-ROW(Fakturainformation[#Headers])), ROW(23:23)), MATCH($C$8, Fakturainformation[#Headers], 0)),\"\")","v":""},{"$f":"IFERROR(INDEX(Fakturainformation[],SMALL(IF(Fakturainformation[Fakturanummer]=rngFaktura,ROW(Fakturainformation[])-ROW(Fakturainformation[#Headers])), ROW(23:23)), MATCH($D$8, Fakturainformation[#Headers], 0)),\"\")","v":""},{"$f":"IFERROR(INDEX(Fakturainformation[],SMALL(IF(Fakturainformation[Fakturanummer]=rngFaktura,ROW(Fakturainformation[])-ROW(Fakturainformation[#Headers])), ROW(23:23)), MATCH($E$8, Fakturainformation[#Headers], 0)),\"\")","v":""},{"$f":"IFERROR(INDEX(Fakturainformation[],SMALL(IF(Fakturainformation[Fakturanummer]=rngFaktura,ROW(Fakturainformation[])-ROW(Fakturainformation[#Headers])), ROW(23:23)), MATCH($F$8, Fakturainformation[#Headers], 0)),\"\")","v":""},""]
[null,{"$f":"IFERROR(INDEX(Fakturainformation[],SMALL(IF(Fakturainformation[Fakturanummer]=rngFaktura,ROW(Fakturainformation[])-ROW(Fakturainformation[#Headers])), ROW(24:24)), MATCH($B$8, Fakturainformation[#Headers], 0)),\"\")","v":""},{"$f":"IFERROR(INDEX(Fakturainformation[],SMALL(IF(Fakturainformation[Fakturanummer]=rngFaktura,ROW(Fakturainformation[])-ROW(Fakturainformation[#Headers])), ROW(24:24)), MATCH($C$8, Fakturainformation[#Headers], 0)),\"\")","v":""},{"$f":"IFERROR(INDEX(Fakturainformation[],SMALL(IF(Fakturainformation[Fakturanummer]=rngFaktura,ROW(Fakturainformation[])-ROW(Fakturainformation[#Headers])), ROW(24:24)), MATCH($D$8, Fakturainformation[#Headers], 0)),\"\")","v":""},{"$f":"IFERROR(INDEX(Fakturainformation[],SMALL(IF(Fakturainformation[Fakturanummer]=rngFaktura,ROW(Fakturainformation[])-ROW(Fakturainformation[#Headers])), ROW(24:24)), MATCH($E$8, Fakturainformation[#Headers], 0)),\"\")","v":""},{"$f":"IFERROR(INDEX(Fakturainformation[],SMALL(IF(Fakturainformation[Fakturanummer]=rngFaktura,ROW(Fakturainformation[])-ROW(Fakturainformation[#Headers])), ROW(24:24)), MATCH($F$8, Fakturainformation[#Headers], 0)),\"\")","v":""},""]
[null,{"$f":"IFERROR(INDEX(Fakturainformation[],SMALL(IF(Fakturainformation[Fakturanummer]=rngFaktura,ROW(Fakturainformation[])-ROW(Fakturainformation[#Headers])), ROW(25:25)), MATCH($B$8, Fakturainformation[#Headers], 0)),\"\")","v":""},{"$f":"IFERROR(INDEX(Fakturainformation[],SMALL(IF(Fakturainformation[Fakturanummer]=rngFaktura,ROW(Fakturainformation[])-ROW(Fakturainformation[#Headers])), ROW(25:25)), MATCH($C$8, Fakturainformation[#Headers], 0)),\"\")","v":""},{"$f":"IFERROR(INDEX(Fakturainformation[],SMALL(IF(Fakturainformation[Fakturanummer]=rngFaktura,ROW(Fakturainformation[])-ROW(Fakturainformation[#Headers])), ROW(25:25)), MATCH($D$8, Fakturainformation[#Headers], 0)),\"\")","v":""},{"$f":"IFERROR(INDEX(Fakturainformation[],SMALL(IF(Fakturainformation[Fakturanummer]=rngFaktura,ROW(Fakturainformation[])-ROW(Fakturainformation[#Headers])), ROW(25:25)), MATCH($E$8, Fakturainformation[#Headers], 0)),\"\")","v":""},{"$f":"IFERROR(INDEX(Fakturainformation[],SMALL(IF(Fakturainformation[Fakturanummer]=rngFaktura,ROW(Fakturainformation[])-ROW(Fakturainformation[#Headers])), ROW(25:25)), MATCH($F$8, Fakturainformation[#Headers], 0)),\"\")","v":""},""]
[{"$nulls":5},"Delsumma för faktura",{"$f":"SUM(ProjektFaktura[Pris])","v":{"v":2014,"d":"2,014.00 kr"}}]
[{"$nulls":5},"Momssats",{"$f":"VLOOKUP(rngFaktura,FakturorHuvudsida[],5)","v":{"v":0.0875,"d":"8.75%"}}]
[{"$nulls":5},"Moms",{"$f":"G34*G35","v":{"v":176.225,"d":"176.23 kr"}}]
[{"$nulls":5},"Övrigt",{"$f":"VLOOKUP(rngFaktura,FakturorHuvudsida[],6)","v":0}]
[null,{"$f":"\"Alla checkar ska ställas ut till \"&Företagsnamn&\".\"","v":"Alla checkar ska ställas ut till Företagsnamn."},{"$nulls":3},"Insättning mottagen",{"$f":"VLOOKUP(rngFaktura,FakturorHuvudsida[],7)","v":0}]
[null,"Beloppet förfaller om <nr> dagar. Försenad betalning debiteras med en avgift på <nr> % per månad.",{"$nulls":3},"SUMMA",{"$f":"(G34+G36+G37)-G38","v":{"v":2190.225,"d":"2,190.23 kr"}}]

{"sheet":"Kunder","index":1,"n_rows":6,"n_cols":12,"rows_kept":6}
[]
[null,null,"Kunder"]
[null,"Uppslag","Företagsnummer","Företagsnamn","Kontaktnamn","Adress","Ort","Region","Postnummer","Telefon","E-post","Fax"]
[null,{"$f":"C4& \" - \"&D4","v":"1 - Tailspin Toys "},1,"Tailspin Toys ","Viktor Magnusson","Kungsgatan 345","Storstad","SD","123456","432-555-0178","namn@example.com","432-555-0187"]
[null,"2 - Contoso, Ltd",2,"Contoso, Ltd","Omar Bergman","Drottninggatan 567","Småstad","MO","098765","432-555-0189","namn@example.com","432-555-0123"]
[null,"Summor",{"$f":"\"Totalt antal kunder: \"&SUBTOTAL(103,Kundlista[Företagsnummer])","v":"Totalt antal kunder: 2"}]

{"sheet":"Fakturor – huvudsida","index":2,"n_rows":6,"n_cols":11,"rows_kept":6}
[]
[null,"Fakturor"]
[null,"Fakturanummer","Företag","Fakturadatum","Projektbeskrivning","Momssats","Övrigt","Insättning","Detaljerad summa","Fakturasumma","Anteckningar"]
[null,"3-456-1","1 - Tailspin Toys ",{"$f":"TODAY()","v":"2019-07-29"},"Projekt 1",{"v":0.0875,"d":"8.75%"},{"v":100,"d":"100.00 kr"},{"v":100,"d":"100.00 kr"},{"$f":"SUMIF(Fakturainformation[Fakturanummer],\"=\"&FakturorHuvudsida[[#This Row],[Fakturanummer]],Fakturainformation[Summa])","v":{"v":5200,"d":"5,200.00 kr"}},{"$f":"(FakturorHuvudsida[[#This Row],[Detaljerad summa]]*(1+FakturorHuvudsida[[#This Row],[Momssats]]))+FakturorHuvudsida[[#This Row],[Övrigt]]-FakturorHuvudsida[[#This Row],[Insättning]]","v":{"v":5654.999999999999,"d":"5,655.00 kr"}}]
[null,"3-456-2","2 - Contoso, Ltd",{"$f":"TODAY()+10","v":"2019-08-08"},"Projekt 2",{"v":0.0875,"d":"8.75%"},null,null,{"$f":"SUMIF(Fakturainformation[Fakturanummer],\"=\"&FakturorHuvudsida[[#This Row],[Fakturanummer]],Fakturainformation[Summa])","v":{"v":2014,"d":"2,014.00 kr"}},{"$f":"(FakturorHuvudsida[[#This Row],[Detaljerad summa]]*(1+FakturorHuvudsida[[#This Row],[Momssats]]))+FakturorHuvudsida[[#This Row],[Övrigt]]-FakturorHuvudsida[[#This Row],[Insättning]]","v":{"v":2190.225,"d":"2,190.23 kr"}}]
[null,"Summor",{"$f":"\"Summa fakturor: \"&SUBTOTAL(103,FakturorHuvudsida[Fakturanummer])","v":"Summa fakturor: 2"},{"$nulls":3},{"$f":"SUBTOTAL(109,FakturorHuvudsida[Övrigt])","v":{"v":100,"d":"100.00 kr"}},{"$f":"SUBTOTAL(109,FakturorHuvudsida[Insättning])","v":{"v":100,"d":"100.00 kr"}},{"$f":"SUBTOTAL(109,FakturorHuvudsida[Detaljerad summa])","v":{"v":7214,"d":"7,214.00 kr"}},{"$f":"SUBTOTAL(109,FakturorHuvudsida[Fakturasumma])","v":{"v":7845.2249999999985,"d":"7,845.23 kr"}}]

{"sheet":"Fakturainformation","index":3,"n_rows":40,"n_cols":8,"rows_kept":40}
[]
[null,"Fakturainformation"]
[null,"Beskrivning","Fakturanummer","Artikelnr","Antal","Enhetspris","Rabatt","Summa"]
[null,"Faktura 3-456-1 Data 1","3-456-1",1,1,{"v":1,"d":"1.00 kr"},{"v":1,"d":"1.00 kr"},{"$f":"(Fakturainformation[[#This Row],[Antal]]*Fakturainformation[[#This Row],[Enhetspris]])-Fakturainformation[[#This Row],[Rabatt]]","v":{"v":0,"d":"0.00 kr"}}]
[null,"Faktura 3-456-1 Data 2","3-456-1",2,2,{"v":2,"d":"2.00 kr"},{"v":2,"d":"2.00 kr"},{"$f":"(Fakturainformation[[#This Row],[Antal]]*Fakturainformation[[#This Row],[Enhetspris]])-Fakturainformation[[#This Row],[Rabatt]]","v":{"v":2,"d":"2.00 kr"}}]
[null,"Faktura 3-456-1 Data 3","3-456-1",3,3,{"v":3,"d":"3.00 kr"},{"v":3,"d":"3.00 kr"},{"$f":"(Fakturainformation[[#This Row],[Antal]]*Fakturainformation[[#This Row],[Enhetspris]])-Fakturainformation[[#This Row],[Rabatt]]","v":{"v":6,"d":"6.00 kr"}}]
[null,"Faktura 3-456-1 Data 4","3-456-1",4,4,{"v":4,"d":"4.00 kr"},{"v":4,"d":"4.00 kr"},{"$f":"(Fakturainformation[[#This Row],[Antal]]*Fakturainformation[[#This Row],[Enhetspris]])-Fakturainformation[[#This Row],[Rabatt]]","v":{"v":12,"d":"12.00 kr"}}]
[null,"Faktura 3-456-1 Data 5","3-456-1",5,5,{"v":5,"d":"5.00 kr"},{"v":5,"d":"5.00 kr"},{"$f":"(Fakturainformation[[#This Row],[Antal]]*Fakturainformation[[#This Row],[Enhetspris]])-Fakturainformation[[#This Row],[Rabatt]]","v":{"v":20,"d":"20.00 kr"}}]
[null,"Faktura 3-456-1 Data 6","3-456-1",6,6,{"v":6,"d":"6.00 kr"},{"v":6,"d":"6.00 kr"},{"$f":"(Fakturainformation[[#This Row],[Antal]]*Fakturainformation[[#This Row],[Enhetspris]])-Fakturainformation[[#This Row],[Rabatt]]","v":{"v":30,"d":"30.00 kr"}}]
[null,"Faktura 3-456-1 Data 7","3-456-1",7,7,{"v":7,"d":"7.00 kr"},{"v":7,"d":"7.00 kr"},{"$f":"(Fakturainformation[[#This Row],[Antal]]*Fakturainformation[[#This Row],[Enhetspris]])-Fakturainformation[[#This Row],[Rabatt]]","v":{"v":42,"d":"42.00 kr"}}]
[null,"Faktura 3-456-1 Data 8","3-456-1",8,8,{"v":8,"d":"8.00 kr"},{"v":8,"d":"8.00 kr"},{"$f":"(Fakturainformation[[#This Row],[Antal]]*Fakturainformation[[#This Row],[Enhetspris]])-Fakturainformation[[#This Row],[Rabatt]]","v":{"v":56,"d":"56.00 kr"}}]
[null,"Faktura 3-456-1 Data 9","3-456-1",9,9,{"v":9,"d":"9.00 kr"},{"v":9,"d":"9.00 kr"},{"$f":"(Fakturainformation[[#This Row],[Antal]]*Fakturainformation[[#This Row],[Enhetspris]])-Fakturainformation[[#This Row],[Rabatt]]","v":{"v":72,"d":"72.00 kr"}}]
[null,"Faktura 3-456-1 Data 10","3-456-1",10,10,{"v":10,"d":"10.00 kr"},{"v":10,"d":"10.00 kr"},{"$f":"(Fakturainformation[[#This Row],[Antal]]*Fakturainformation[[#This Row],[Enhetspris]])-Fakturainformation[[#This Row],[Rabatt]]","v":{"v":90,"d":"90.00 kr"}}]
[null,"Faktura 3-456-1 Data 11","3-456-1",11,11,{"v":11,"d":"11.00 kr"},{"v":11,"d":"11.00 kr"},{"$f":"(Fakturainformation[[#This Row],[Antal]]*Fakturainformation[[#This Row],[Enhetspris]])-Fakturainformation[[#This Row],[Rabatt]]","v":{"v":110,"d":"110.00 kr"}}]
[null,"Faktura 3-456-1 Data 12","3-456-1",12,12,{"v":12,"d":"12.00 kr"},{"v":12,"d":"12.00 kr"},{"$f":"(Fakturainformation[[#This Row],[Antal]]*Fakturainformation[[#This Row],[Enhetspris]])-Fakturainformation[[#This Row],[Rabatt]]","v":{"v":132,"d":"132.00 kr"}}]
[null,"Faktura 3-456-1 Data 13","3-456-1",13,13,{"v":13,"d":"13.00 kr"},{"v":13,"d":"13.00 kr"},{"$f":"(Fakturainformation[[#This Row],[Antal]]*Fakturainformation[[#This Row],[Enhetspris]])-Fakturainformation[[#This Row],[Rabatt]]","v":{"v":156,"d":"156.00 kr"}}]
[null,"Faktura 3-456-1 Data 14","3-456-1",14,14,{"v":14,"d":"14.00 kr"},{"v":14,"d":"14.00 kr"},{"$f":"(Fakturainformation[[#This Row],[Antal]]*Fakturainformation[[#This Row],[Enhetspris]])-Fakturainformation[[#This Row],[Rabatt]]","v":{"v":182,"d":"182.00 kr"}}]
[null,"Faktura 3-456-1 Data 15","3-456-1",15,15,{"v":15,"d":"15.00 kr"},{"v":15,"d":"15.00 kr"},{"$f":"(Fakturainformation[[#This Row],[Antal]]*Fakturainformation[[#This Row],[Enhetspris]])-Fakturainformation[[#This Row],[Rabatt]]","v":{"v":210,"d":"210.00 kr"}}]
[null,"Faktura 3-456-1 Data 16","3-456-1",16,16,{"v":16,"d":"16.00 kr"},{"v":16,"d":"16.00 kr"},{"$f":"(Fakturainformation[[#This Row],[Antal]]*Fakturainformation[[#This Row],[Enhetspris]])-Fakturainformation[[#This Row],[Rabatt]]","v":{"v":240,"d":"240.00 kr"}}]
[null,"Faktura 3-456-1 Data 17","3-456-1",17,17,{"v":17,"d":"17.00 kr"},{"v":17,"d":"17.00 kr"},{"$f":"(Fakturainformation[[#This Row],[Antal]]*Fakturainformation[[#This Row],[Enhetspris]])-Fakturainformation[[#This Row],[Rabatt]]","v":{"v":272,"d":"272.00 kr"}}]
[null,"Faktura 3-456-1 Data 18","3-456-1",18,18,{"v":18,"d":"18.00 kr"},{"v":18,"d":"18.00 kr"},{"$f":"(Fakturainformation[[#This Row],[Antal]]*Fakturainformation[[#This Row],[Enhetspris]])-Fakturainformation[[#This Row],[Rabatt]]","v":{"v":306,"d":"306.00 kr"}}]
[null,"Faktura 3-456-1 Data 19","3-456-1",19,19,{"v":19,"d":"19.00 kr"},{"v":19,"d":"19.00 kr"},{"$f":"(Fakturainformation[[#This Row],[Antal]]*Fakturainformation[[#This Row],[Enhetspris]])-Fakturainformation[[#This Row],[Rabatt]]","v":{"v":342,"d":"342.00 kr"}}]
[null,"Faktura 3-456-1 Data 20","3-456-1",20,20,{"v":20,"d":"20.00 kr"},{"v":20,"d":"20.00 kr"},{"$f":"(Fakturainformation[[#This Row],[Antal]]*Fakturainformation[[#This Row],[Enhetspris]])-Fakturainformation[[#This Row],[Rabatt]]","v":{"v":380,"d":"380.00 kr"}}]
[null,"Faktura 3-456-1 Data 21","3-456-1",21,21,{"v":21,"d":"21.00 kr"},{"v":21,"d":"21.00 kr"},{"$f":"(Fakturainformation[[#This Row],[Antal]]*Fakturainformation[[#This Row],[Enhetspris]])-Fakturainformation[[#This Row],[Rabatt]]","v":{"v":420,"d":"420.00 kr"}}]
[null,"Faktura 3-456-1 Data 22","3-456-1",22,22,{"v":22,"d":"22.00 kr"},{"v":22,"d":"22.00 kr"},{"$f":"(Fakturainformation[[#This Row],[Antal]]*Fakturainformation[[#This Row],[Enhetspris]])-Fakturainformation[[#This Row],[Rabatt]]","v":{"v":462,"d":"462.00 kr"}}]
[null,"Faktura 3-456-1 Data 23","3-456-1",23,23,{"v":23,"d":"23.00 kr"},{"v":23,"d":"23.00 kr"},{"$f":"(Fakturainformation[[#This Row],[Antal]]*Fakturainformation[[#This Row],[Enhetspris]])-Fakturainformation[[#This Row],[Rabatt]]","v":{"v":506,"d":"506.00 kr"}}]
[null,"Faktura 3-456-1 Data 24","3-456-1",24,24,{"v":24,"d":"24.00 kr"},{"v":24,"d":"24.00 kr"},{"$f":"(Fakturainformation[[#This Row],[Antal]]*Fakturainformation[[#This Row],[Enhetspris]])-Fakturainformation[[#This Row],[Rabatt]]","v":{"v":552,"d":"552.00 kr"}}]
[null,"Faktura 3-456-1 Data 25","3-456-1",25,25,{"v":25,"d":"25.00 kr"},{"v":25,"d":"25.00 kr"},{"$f":"(Fakturainformation[[#This Row],[Antal]]*Fakturainformation[[#This Row],[Enhetspris]])-Fakturainformation[[#This Row],[Rabatt]]","v":{"v":600,"d":"600.00 kr"}}]
[null,"Faktura 3-456-2 Data 1","3-456-2","Z4567",39,{"v":5,"d":"5.00 kr"},null,{"$f":"(Fakturainformation[[#This Row],[Antal]]*Fakturainformation[[#This Row],[Enhetspris]])-Fakturainformation[[#This Row],[Rabatt]]","v":{"v":195,"d":"195.00 kr"}}]
[null,"Faktura 3-456-2 Data 2","3-456-2","Z4568",40,{"v":4,"d":"4.00 kr"},{"v":5,"d":"5.00 kr"},{"$f":"(Fakturainformation[[#This Row],[Antal]]*Fakturainformation[[#This Row],[Enhetspris]])-Fakturainformation[[#This Row],[Rabatt]]","v":{"v":155,"d":"155.00 kr"}}]
[null,"Faktura 3-456-2 Data 3","3-456-2","Z4569",30,{"v":6,"d":"6.00 kr"},{"v":7,"d":"7.00 kr"},{"$f":"(Fakturainformation[[#This Row],[Antal]]*Fakturainformation[[#This Row],[Enhetspris]])-Fakturainformation[[#This Row],[Rabatt]]","v":{"v":173,"d":"173.00 kr"}}]
[null,"Faktura 3-456-2 Data 4","3-456-2","Z4570",40,{"v":7,"d":"7.00 kr"},null,{"$f":"(Fakturainformation[[#This Row],[Antal]]*Fakturainformation[[#This Row],[Enhetspris]])-Fakturainformation[[#This Row],[Rabatt]]","v":{"v":280,"d":"280.00 kr"}}]
[null,"Faktura 3-456-2 Data 5","3-456-2","Z4571",10,{"v":4,"d":"4.00 kr"},null,{"$f":"(Fakturainformation[[#This Row],[Antal]]*Fakturainformation[[#This Row],[Enhetspris]])-Fakturainformation[[#This Row],[Rabatt]]","v":{"v":40,"d":"40.00 kr"}}]
[null,"Faktura 3-456-2 Data 6","3-456-2","Z4572",5,{"v":8,"d":"8.00 kr"},null,{"$f":"(Fakturainformation[[#This Row],[Antal]]*Fakturainformation[[#This Row],[Enhetspris]])-Fakturainformation[[#This Row],[Rabatt]]","v":{"v":40,"d":"40.00 kr"}}]
[null,"Faktura 3-456-2 Data 7","3-456-2","Z4573",70,{"v":6,"d":"6.00 kr"},null,{"$f":"(Fakturainformation[[#This Row],[Antal]]*Fakturainformation[[#This Row],[Enhetspris]])-Fakturainformation[[#This Row],[Rabatt]]","v":{"v":420,"d":"420.00 kr"}}]
[null,"Faktura 3-456-2 Data 8","3-456-2","Z4574",25,{"v":4,"d":"4.00 kr"},null,{"$f":"(Fakturainformation[[#This Row],[Antal]]*Fakturainformation[[#This Row],[Enhetspris]])-Fakturainformation[[#This Row],[Rabatt]]","v":{"v":100,"d":"100.00 kr"}}]
[null,"Faktura 3-456-2 Data 9","3-456-2","Z4575",5,{"v":7,"d":"7.00 kr"},{"v":3,"d":"3.00 kr"},{"$f":"(Fakturainformation[[#This Row],[Antal]]*Fakturainformation[[#This Row],[Enhetspris]])-Fakturainformation[[#This Row],[Rabatt]]","v":{"v":32,"d":"32.00 kr"}}]
[null,"Faktura 3-456-2 Data 10","3-456-2","Z4576",80,{"v":1,"d":"1.00 kr"},null,{"$f":"(Fakturainformation[[#This Row],[Antal]]*Fakturainformation[[#This Row],[Enhetspris]])-Fakturainformation[[#This Row],[Rabatt]]","v":{"v":80,"d":"80.00 kr"}}]
[null,"Faktura 3-456-2 Data 11","3-456-2","Z4577",65,{"v":7,"d":"7.00 kr"},null,{"$f":"(Fakturainformation[[#This Row],[Antal]]*Fakturainformation[[#This Row],[Enhetspris]])-Fakturainformation[[#This Row],[Rabatt]]","v":{"v":455,"d":"455.00 kr"}}]
[null,"Faktura 3-456-2 Data 12","3-456-2","Z4578",44,{"v":1,"d":"1.00 kr"},null,{"$f":"(Fakturainformation[[#This Row],[Antal]]*Fakturainformation[[#This Row],[Enhetspris]])-Fakturainformation[[#This Row],[Rabatt]]","v":{"v":44,"d":"44.00 kr"}}]

{"sheet":"Om fakturaöversikten","index":4,"n_rows":40,"n_cols":3,"rows_kept":40,"merged":[[3,1,3,7],[4,1,4,7],[5,1,5,7],[6,1,6,7],[7,2,7,7],[8,2,8,7],[9,2,9,7],[10,2,10,7],[11,2,11,7],[12,1,12,7],[13,2,13,3],[14,2,14,7],[15,1,15,7],[16,2,16,7],[17,2,17,7],[18,2,18,7],[19,2,19,7],[20,2,20,7],[21,2,21,7],[22,1,22,7],[23,1,23,7],[24,2,24,7],[25,2,25,7],[26,2,26,7],[27,2,27,7],[28,1,28,7],[29,1,29,7],[30,2,30,7],[31,2,31,7],[32,2,32,7],[33,2,33,7],[34,2,34,7],[36,2,36,7],[37,2,37,7],[38,2,38,7],[39,2,39,7]]}
[null,"Om fakturaöversikten"]
[]
[]
[null,"Fakturaöversikten är utformad för att bibehålla en historik över kunder, fakturor och fakturadetaljer så att du kan lagra flera fakturor utan att skapa flera filer. Du kan även analysera tidigare fakturerade data med hjälp av fakturaöversikten. Du kan till exempel visa alla fakturor för en kund, ett särskilt projekt eller alla fakturor för den senaste månaden, förra året och mycket mer."]
[null,"Innan du börjar bör du ta en titt på de exempeldata som tillhandahålls. På bladet Faktura markerar du cellen till höger om Fakturanummer (cell L8) så visas en listruta. Välj listpilen och sedan en exempelfaktura. Observera att all fakturainformation ändras automatiskt och avspeglar den valda fakturan. Titta nu på bladen för kunder och huvudblad och detaljblad för fakturor. Vart och ett av de här bladen innehåller information för fakturan och alla ändringar du gör kommer att uppdateras automatiskt. "]
[null,"Hur kommer jag igång?"]
[null,"Ändra fakturabladet så att det stämmer överens med ditt företags information med hjälp av följande steg:"]
[null,"1.","Gå till bladet Faktura, fliken Granska, gruppen Skydda och välj Ta bort bladets skydd. "]
[null,null,"Obs! Fakturabladet är skyddat för att undvika oavsiktliga ändringar, eftersom majoriteten av data i det här kalkylbladet hämtas från alla andra kalkylblad i arbetsboken som tidigare nämnts. "]
[null,"2.","Anpassa fakturahuvudet genom att skriva in företagets namn, gatuadress, postnummer, ort, e-postadress, webbplats och så vidare. Justera betalningsanvisningarna längst ned på fakturan (rad 43). "]
[null,null,"Viktigt! Ändra inte fakturerings-eller fakturainformationen. Alla dessa celler har formler som automatiskt uppdaterar fakturan, som anges i avsnittet Om fakturaöversikten.  "]
[null,"3.","(Valfritt) Ändra färgerna i hela arbetsboken: På fliken Sidlayout i gruppen Teman väljer du Färger och väljer en annan temafärguppsättning i färggalleriet. "]
[null,"Tips: Skapa en anpassad temafärguppsättning som passar ditt företags varumärke! Det gör du genom att gå till fliken Sidlayout, gruppen Teman. Välj Färger och sedan Anpassa färger. Mer information om hur du skapar en egen färguppsättning finns i följande hjälpavsnitt: "]
[null,null,"Anpassa ett dokumenttema."]
[null,"4.","När du har gjort önskade ändringar återgår du till fakturabladet. På fliken Granska, gruppen Ändringar väljer du Skydda blad och sedan OK. När fakturabladet är skyddat är den enda cellen du kan välja den cell som innehåller listrutan Fakturanummer."]
[null,"Hur skapar jag en faktura?"]
[null,"1.","Ange kundinformation som exempelvis företagets namn och adress på bladet Kunder. Observera att företagsnummer är en viktig post eftersom det ger en unik identifierare för varje företag som används i fakturaöversikten. Observera även att du bara behöver lägga till ett företag en gång. För efterföljande fakturor för samma företag kan detta steg hoppas över. "]
[null,null,"Obs! Om du tilldelar samma nummer till fler än ett företag eller anger samma företagsnamn mer än en gång, kommer posterna att bli röda för att uppmärksamma dubbletterna. "]
[null,"2.","Ange primär information för fakturan, t.ex. fakturanummer, fakturadatum och projektbeskrivning på fakturans huvudblad. Precis som företagsnumret är fakturanumret en viktig post eftersom det ger en unik identifierare för varje faktura och används i fakturaöversikten. En annan viktig post är Företag. När du väljer ett företag i den tillhörande listrutan kopplas fakturan till det företaget. När du sedan väljer ett fakturanummer på bladet Faktura fylls informationen om det företaget, t.ex. företagets namn och adress, i automatiskt på fakturan."]
[null,null,"Obs! Om du tilldelar samma nummer till fler än en faktura kommer posterna att bli röda för att uppmärksamma dubbletterna. "]
[null,"3.","Ange information för fakturan, t. ex. en artikelbeskrivning, artikelnummer, antal och enhetspris, på bladet med detaljerad information för fakturan. Listrutan för fakturanummer innehåller en lista med fakturor som du har angett på huvudbladet för fakturor för att underlätta datainmatningen. På samma sätt som företagsnummer i föregående steg kopplar fakturanumret den detaljposten till en viss faktura. När du väljer ett fakturanummer på bladet Faktura i listrutan för fakturanummer visas den relaterade fakturainformationen för den fakturan."]
[null,null,"Obs! Det finns en begränsning på 25 detaljposter per faktura. Om fler än 25 objekt läggs till blir alla motsvarande poster röda så att du uppmärksammas på denna begränsning. Om du har fler än 25 fakturaobjekt måste du skapa en andra faktura. "]
[null,"Hur lägger jag till fler kunder, fakturor och fakturadetaljer?"]
[null,"Data för Kunder, Fakturor och Fakturainformation finns lagrade i Excel-tabeller. När du lägger till en ny rad i en tabell formateras den nya raden automatiskt och alla beräkningar kommer att kopieras. Om du vill lägga till nya tabellrader gör du något av följande:"]
[null,"● ","Om tabellen inte har en summarad kan du börja skriva under tabellen så expanderas den automatiskt när du trycker på Retur- eller Tabb-tangenten."]
[null,"● ","Placera cellmarkören i den sista cellen ovanför summaraden, t.ex. i anteckningscellen för den sista fakturan i tabellen Fakturor, och tryck sedan på Tabb-tangenten."]
[null,"● ","På fliken Start i gruppen Celler väljer du Infoga och väljer sedan Tabellrader ovanför eller Tabellrad nedanför. "]
[null,"● ","I tabellens nedre högra hörn placerar du musen på tabellstorlekshandtaget och drar nedåt för att öka antalet tillgängliga tabellrader."]
[null,"Hur analyserar jag fakturainformationen?"]
[null,"Som vi angav i avsnittet Om fakturaöversikten kan du när du har angett flera fakturor visa en lista över alla fakturor för en viss kund, ett projekt, ett datumintervall och mycket mer. Den här typen av analys görs med ett Filter som gör att du snabbt kan begränsa en datalista. Om du vill komma åt ett filter för tabellerna Kunder, Fakturor eller Fakturainformation väljer du pilen bredvid ett tabellfältnamn. Ett filterfönster som innehåller en mängd olika filtreringsalternativ visas. Här är några exempel på filter som hjälper dig att komma igång:"]
[null,"● ","Så här visar du det totala belopp som du har fakturerat en särskild kund: Välj nedpilen i listrutan till höger om fältet Företagsnummer på fakturans huvudblad. I filterfönstret klickar du på Markera alla för att avmarkera alla företag, välj det önskade företaget och välj sedan OK. "]
[null,null,"Tips: I fönstret Filtera kan du även skriva kundens namn i textrutan Sök för att snabbt söka i den tillgängliga listan."]
[null,"● ","Så här visar du alla fakturor för en särskild kund och specifika projekt: Börja med att filtrera efter önskad kund enligt anvisningarna i föregående exempel. Välj sedan listrutepilen till höger om Projektnummer. Välj önskat projekt eller flera projekt i rutan Filter och välj sedan OK. "]
[null,"● ","Så här visar du alla fakturor för föregående månad: Välj nedpilen i listrutan till höger om fältet Fakturadatum på huvudbladet för fakturan, peka på Datumfilter och välj sedan Förra månaden."]
[null,"● ","Så här visar du alla kunder med samma riktnummer: Välj nedpilen i listrutan till höger om fältet Telefon på bladet Kunder. Klicka i textrutan Sök i filterfönstret, skriv riktnumret och välj sedan OK. "]
[null,"Filtreringstips"]
[null,"● ","Om en tabell har en summarad, t. ex. Kunder och Fakturor, kommer de beräknade summorna bara att baseras på din filtrerade lista."]
[null,"● ","Du kan använda flera filter för ett eller flera fält för att finjustera resultatet."]
[null,"● ","Om du vill ta bort ett enstaka filter väljer du listrutepilen för en tidigare filtrerad kolumn och väljer sedan Rensa filter i <fältnamn>."]
[null,"● ","Om du vill ta bort flera filter samtidigt placerar du cellpekaren i tabellen. Gå sedan till fliken Start, gruppen Redigering, välj Sortera och filtrera och sedan Radera."]